fUST/lending_fUST_20250405
["ID","MTS","AMOUNT","RATE_DAILY","PERIOD"]
[357140958,1743786641986,-500.0,0.00023865,2]
[357140959,1743786641995,-500.0,0.00023865,2]
[357140960,1743786642005,-500.0,0.00023865,2]
[357140961,1743786642015,-439.0307576,0.00023873,2]
[357140962,1743786642025,-280.48755935,0.00023873,2]
[357140963,1743786642034,-500.0,0.00023873,2]
[357140964,1743786642044,-500.0,0.00023873,2]
[357140965,1743786642053,-520.360202,0.00023873,2]
[357140966,1743786642064,-500.0,0.00023873,2]
[357140967,1743786642074,-500.0,0.00023873,2]
[357140968,1743786642084,-169.09802,0.00023873,7]
[357140969,1743786642094,-169.09802,0.00023873,7]
[357140970,1743786642107,-151.0,0.00023899,7]
[357140971,1743786642118,-175.255886,0.00023899,7]
[357140972,1743786642128,-370000.0,0.000239,2]
[357140973,1743786642138,-151.0,0.000239,7]
[357140974,1743786642148,-151.0,0.000239,7]
[357140975,1743786642158,-151.0,0.000239,7]
[357140976,1743786642168,-169.09802,0.000239,7]
[357140977,1743786642178,-169.09802,0.000239,7]
[357140978,1743786642187,-151.0,0.000239,7]
[357140979,1743786642197,-1017.5606,0.000239,2]
[357140980,1743786642206,-1017.5606,0.000239,2]
[357140981,1743786642216,-151.0,0.000239,7]
[357140982,1743786642225,-431.301397,0.000239,7]
[357140983,1743786642235,-431.301397,0.000239,7]
[357140984,1743786642244,-1691.18896005,0.00023966,2]
[357140985,1743786642255,-847.70192283,0.00023999,2]
[357140986,1743786642264,-17954.57154356,0.00024,2]
[357140987,1743786642274,-139340.21069828,0.00024,2]
[357140988,1743786642284,-151.0,0.00024,7]
[357140989,1743786642294,-1017.5606,0.00024,2]
[357140990,1743786642304,-1017.5606,0.00024,2]
[357140991,1743786642314,-151.0,0.00024,7]
[357140992,1743786642324,-431.301397,0.00024,7]
[357140993,1743786642334,-431.301397,0.00024,7]
[357140994,1743786642343,-500.0,0.00024,2]
[357140995,1743786642355,-500.0,0.0002402,2]
[357140996,1743786642364,-500.0,0.0002402,2]
[357140997,1743786642374,-500.0,0.0002402,2]
[357140998,1743786642383,-513.72,0.0002402,2]
[357140999,1743786642393,-500.0,0.0002402,2]
[357141000,1743786642403,-1051.04679156,0.00024038,5]
[357141001,1743786642412,-317.8016053,0.00024044,2]
[357141002,1743786642422,-603.94,0.00024105,2]
[357141003,1743786642431,-500.0,0.00024105,2]
[357141004,1743786642441,-151.328832,0.0002411,7]
[357141005,1743786642451,-153.062928,0.00024119,7]
[357141006,1743786642460,-500.0,0.00024119,2]
[357141007,1743786642470,-151.0,0.00024119,7]
[357141008,1743786642480,-169.09802,0.00024119,7]
[357141009,1743786642489,-169.09802,0.00024119,7]
[357141010,1743786642498,-500.0,0.00024139,2]
[357141011,1743786642507,-500.0,0.00024139,2]
[357141012,1743786642517,-500.0,0.00024139,2]
[357141013,1743786642526,-500.0,0.00024294,2]
[357141014,1743786642535,-500.0,0.00024294,2]
[357141015,1743786642545,-500.0,0.00024294,2]
[357141016,1743786642555,-513.72,0.00024294,2]
[357141017,1743786642564,-500.0,0.00024294,2]
[357141018,1743786642575,-603.94,0.00024379,2]
[357141019,1743786642585,-209.61745044,0.00024379,2]
[357141020,1743786642594,-379.64,0.00024379,2]
[357141021,1743786642605,-151.0,0.00024393,7]
[357141022,1743786642615,-500.0,0.00024413,2]
[357141023,1743786642624,-374.16,0.00024413,2]
[357141024,1743786642634,-20077.63031811,0.000245,4]
[357141025,1743786642644,-151.0,0.000245,7]
[357141026,1743786642654,-169.09802,0.000245,7]
[357141027,1743786642664,-169.09802,0.000245,7]
[357141028,1743786642673,-151.0,0.000245,7]
[357141029,1743786642682,-1017.5606,0.000245,2]
[357141030,1743786642692,-1017.5606,0.000245,2]
[357141031,1743786642702,-151.0,0.000245,7]
[357141032,1743786642712,-431.301397,0.000245,7]
[357141033,1743786642722,-431.301397,0.000245,7]
[357141034,1743786642732,-1245.15412006,0.00024563,2]
[357141035,1743786642742,-500.0,0.00024568,2]
[357141036,1743786642752,-500.0,0.00024568,2]
[357141037,1743786642761,-500.0,0.00024568,2]
[357141038,1743786642771,-513.72,0.00024568,2]
[357141039,1743786642780,-500.0,0.00024568,2]
[357141040,1743786642790,-5000.0,0.00024602,2]
[357141041,1743786642800,-603.94,0.00024653,2]
[357141042,1743786642810,-82417.1900762,0.00024658,2]
[357141043,1743786642820,-151.0,0.00024658,7]
[357141044,1743786642829,-151.0,0.00024658,7]
[357141045,1743786642840,-169.09802,0.00024658,7]
[357141046,1743786642851,-169.09802,0.00024658,7]
[357141047,1743786642861,-151.0,0.00024658,7]
[357141048,1743786642870,-1017.5606,0.00024658,2]
[357141049,1743786642880,-1017.5606,0.00024658,2]
[357141050,1743786642890,-151.0,0.00024658,7]
[357141051,1743786642900,-431.301397,0.00024658,7]
[357141052,1743786642909,-431.301397,0.00024658,7]
[357141053,1743786642919,-500.0,0.00024687,2]
[357141054,1743786642929,-2000.0,0.0002475,7]
[357141055,1743786642939,-500.0,0.0002475,15]
[357141056,1743786642949,-2000.0,0.0002479,7]
[357141057,1743786642959,-2000.0,0.0002479,7]
[357141058,1743786642969,-2000.0,0.0002479,7]
[357141059,1743786642984,-2000.0,0.0002479,3]
[357141060,1743786642994,-2783.39,0.000248,14]
[357141061,1743786643004,-282.0,0.000248,7]
[357141062,1743786643013,-169.09802,0.000248,7]
[357141063,1743786643025,-169.09802,0.000248,7]
[357141064,1743786643035,-151.0,0.000248,7]
[357141065,1743786643044,-1017.5606,0.000248,2]
[357141066,1743786643054,-1017.5606,0.000248,2]
[357141067,1743786643066,-3167.26672898,0.000248,2]
[357141068,1743786643080,-16857.16520675,0.000248,2]
[357141069,1743786643091,-3083.13317663,0.000248,2]
[357141077,1743786644825,-500.0,0.000248,2]
[357141078,1743786644838,-305.21753407,0.000248,2]
[357141079,1743786644850,-1326.49416855,0.000248,2]
[357141080,1743786644931,-11323.41079616,0.000248,2]
[357141090,1743786646932,-6923.763984,0.000248,2]
[357141098,1743787311848,1000.0,0.00025,30]
[357141099,1743787329040,656.77,0.00025,30]
[357141170,1743787832086,-173.873006,0.00013699,2]
[357141171,1743787832098,-167.642954,0.00014235,2]
[357141172,1743787832107,-613.64498978,0.00014954,2]
[357141173,1743787832117,-300.0,0.00015053,2]
[357141174,1743787832126,-536.14,0.00015054,2]
[357141175,1743787832136,-467.28101889,0.00015054,2]
[357141208,1743787837886,-32.71898111,0.00015054,2]
[357141210,1743787837896,-500.0,0.00015054,2]
[357141212,1743787837908,-500.0,0.00015054,2]
[357141214,1743787837918,-500.0,0.00015054,2]
[357141216,1743787837927,-500.0,0.00015054,2]
[357141218,1743787837937,-500.0,0.00015054,2]
[357141220,1743787837947,-500.0,0.00015054,2]
[357141222,1743787837956,-24900.0,0.00015055,2]
[357141224,1743787837966,-2130.67139641,0.00015226,2]
[357141226,1743787837975,-536.14,0.00015328,2]
[357141229,1743787837985,-500.0,0.00015328,2]
[357141231,1743787837995,-500.0,0.00015328,2]
[357141233,1743787838004,-500.0,0.00015328,2]
[357141235,1743787838013,-500.0,0.00015328,2]
[357141236,1743787838023,-500.0,0.00015328,2]
[357141239,1743787838033,-500.0,0.00015328,2]
[357141241,1743787838042,-500.0,0.00015328,2]
[357141242,1743787838051,-1446.85009146,0.00015333,2]
[357141244,1743787838061,-229.797666,0.00015433,2]
[357141247,1743787838070,-536.14,0.00015602,2]
[357141249,1743787838080,-500.0,0.00015602,2]
[357141251,1743787838090,-500.0,0.00015602,2]
[357141253,1743787838100,-500.0,0.00015602,2]
[357141254,1743787838110,-500.0,0.00015602,2]
[357141256,1743787838120,-500.0,0.00015602,2]
[357141258,1743787838130,-500.0,0.00015602,2]
[357141261,1743787838139,-500.0,0.00015602,2]
[357141263,1743787838149,-53327.61561416,0.0001583,2]
[357141265,1743787838162,-95714.96335705,0.0001583,2]
[357141267,1743787838172,-536.14,0.00015876,2]
[357141269,1743787838181,-500.0,0.00015876,2]
[357141271,1743787838190,-500.0,0.00015876,2]
[357141273,1743787838200,-500.0,0.00015876,2]
[357141275,1743787838209,-500.0,0.00015876,2]
[357141277,1743787838219,-500.0,0.00015876,2]
[357141279,1743787838228,-500.0,0.00015876,2]
[357141281,1743787838237,-500.0,0.00015876,2]
[357141283,1743787838247,-500.0,0.00015882,2]
[357141285,1743787838256,-536.14,0.0001615,2]
[357141287,1743787838265,-627.65,0.0001615,2]
[357141289,1743787838274,-500.0,0.0001615,2]
[357141291,1743787838284,-500.0,0.0001615,2]
[357141293,1743787838293,-500.0,0.0001615,2]
[357141295,1743787838302,-500.0,0.0001615,2]
[357141297,1743787838311,-500.0,0.0001615,2]
[357141299,1743787838321,-500.0,0.0001615,2]
[357141301,1743787838330,-500.0,0.00016155,2]
[357141303,1743787838339,-500.0,0.00016155,2]
[357141305,1743787838352,-550.19845652,0.00016155,2]
[357141307,1743787838362,-500.0,0.00016155,2]
[357141309,1743787838372,-500.0,0.00016155,2]
[357141311,1743787838381,-500.0,0.00016155,2]
[357141313,1743787838390,-500.0,0.00016155,2]
[357141315,1743787838400,-500.0,0.00016155,2]
[357141317,1743787838410,-500.0,0.00016155,2]
[357141319,1743787838419,-500.0,0.00016155,2]
[357141322,1743787838429,-500.0,0.00016155,2]
[357141323,1743787838439,-500.0,0.00016155,2]
[357141325,1743787838448,-500.0,0.00016155,2]
[357141328,1743787838457,-500.0,0.00016155,2]
[357141330,1743787838467,-500.0,0.00016155,2]
[357141332,1743787838476,-500.0,0.00016155,2]
[357141333,1743787838485,-500.0,0.00016155,2]
[357141336,1743787838496,-500.0,0.00016155,2]
[357141338,1743787838507,-500.0,0.00016155,2]
[357141340,1743787838519,-500.0,0.00016155,2]
[357141342,1743787838531,-500.0,0.00016155,2]
[357141345,1743787838542,-500.0,0.00016155,2]
[357141347,1743787838554,-500.0,0.00016155,2]
[357141349,1743787838565,-500.0,0.00016155,2]
[357141351,1743787838576,-500.0,0.00016155,2]
[357141353,1743787838586,-500.0,0.00016155,2]
[357141355,1743787838596,-500.0,0.00016155,2]
[357141358,1743787838608,-500.0,0.00016155,2]
[357141360,1743787838620,-500.0,0.00016155,2]
[357141362,1743787838631,-500.0,0.00016155,2]
[357141364,1743787838642,-500.0,0.00016155,2]
[357141367,1743787838653,-500.0,0.00016155,2]
[357141369,1743787838664,-500.0,0.00016155,2]
[357141371,1743787838676,-909.42,0.00016155,2]
[357141373,1743787838687,-500.0,0.00016155,2]
[357141375,1743787838698,-130.50127407,0.00016155,2]
[357141378,1743787838712,-369.49872593,0.00016155,2]
[357141380,1743787838724,-160.0,0.00016247,2]
[357141382,1743787838735,-160.0,0.00016247,2]
[357141385,1743787838747,-536.14,0.00016424,2]
[357141387,1743787838759,-500.0,0.00016424,2]
[357141389,1743787838770,-500.0,0.00016424,2]
[357141391,1743787838782,-500.0,0.00016424,2]
[357141394,1743787838793,-500.0,0.00016424,2]
[357141396,1743787838803,-500.0,0.00016424,2]
[357141398,1743787838814,-500.0,0.00016428,2]
[357141400,1743787838826,-500.0,0.00016428,2]
[357141402,1743787838836,-269.48057117,0.00016428,2]
[357141404,1743787838847,-500.0,0.00016429,2]
[357141406,1743787838857,-500.0,0.00016429,2]
[357141408,1743787838868,-500.0,0.00016429,2]
[357141411,1743787838880,-500.0,0.00016429,2]
[357141413,1743787838891,-500.0,0.00016429,2]
[357141415,1743787838903,-500.0,0.00016429,2]
[357141417,1743787838914,-500.0,0.00016429,2]
[357141420,1743787838925,-277.11531675,0.00016429,2]
[357141422,1743787838936,-500.0,0.00016429,2]
[357141424,1743787838945,-500.0,0.00016429,2]
[357141426,1743787838956,-500.0,0.00016429,2]
[357141428,1743787838966,-500.0,0.00016429,2]
[357141430,1743787838976,-501.09746196,0.00016429,2]
[357141432,1743787838987,-500.80028926,0.00016429,2]
[357141434,1743787838998,-500.0,0.00016429,2]
[357141437,1743787839008,-500.0,0.00016429,2]
[357141439,1743787839020,-500.0,0.00016429,2]
[357141441,1743787839030,-500.0,0.00016429,2]
[357141443,1743787839041,-500.0,0.00016429,2]
[357141445,1743787839052,-500.0,0.00016429,2]
[357141446,1743787839063,-500.0,0.00016429,2]
[357141447,1743787839075,-575.32157473,0.00016429,2]
[357141448,1743787839087,-500.0,0.00016429,2]
[357141449,1743787839099,-500.0,0.00016429,2]
[357141450,1743787839111,-500.0,0.00016429,2]
[357141451,1743787839124,-500.0,0.00016429,2]
[357141452,1743787839136,-500.0,0.00016429,2]
[357141453,1743787839148,-500.0,0.00016429,2]
[357141454,1743787839161,-500.0,0.00016429,2]
[357141455,1743787839173,-525.52627127,0.00016429,2]
[357141457,1743787839185,-500.0,0.00016429,2]
[357141459,1743787839195,-500.0,0.00016429,2]
[357141461,1743787839205,-500.0,0.00016429,2]
[357141463,1743787839215,-500.0,0.00016429,2]
[357141465,1743787839226,-500.0,0.00016429,2]
[357141467,1743787839236,-500.0,0.00016429,2]
[357141470,1743787839247,-500.0,0.00016429,2]
[357141472,1743787839257,-188.89293679,0.00016429,2]
[357141474,1743787839269,-500.0,0.00016429,2]
[357141477,1743787839280,-500.0,0.00016429,2]
[357141479,1743787839293,-500.0,0.00016429,2]
[357141481,1743787839304,-500.0,0.00016429,2]
[357141484,1743787839315,-500.0,0.00016429,2]
[357141486,1743787839326,-500.0,0.00016429,2]
[357141488,1743787839336,-500.0,0.00016429,2]
[357141490,1743787839345,-500.0,0.00016429,2]
[357141492,1743787839358,-500.0,0.00016429,2]
[357141494,1743787839369,-500.0,0.00016429,2]
[357141496,1743787839379,-500.0,0.00016429,2]
[357141498,1743787839391,-500.0,0.00016429,2]
[357141501,1743787839404,-909.42,0.00016429,2]
[357141503,1743787839414,-500.0,0.00016429,2]
[357141505,1743787839424,-500.0,0.00016429,2]
[357141507,1743787839435,-500.0,0.00016429,2]
[357141509,1743787839445,-420.0,0.00016474,2]
[357141511,1743787839455,-536.14,0.00016698,2]
[357141513,1743787839465,-500.0,0.00016698,2]
[357141515,1743787839475,-500.0,0.00016698,2]
[357141517,1743787839485,-500.0,0.00016698,2]
[357141519,1743787839496,-500.0,0.00016698,2]
[357141521,1743787839506,-500.0,0.00016698,2]
[357141523,1743787839517,-500.0,0.00016703,2]
[357141526,1743787839529,-500.0,0.00016703,2]
[357141529,1743787839539,-500.0,0.00016703,2]
[357141531,1743787839549,-500.0,0.00016703,2]
[357141533,1743787839560,-500.0,0.00016703,2]
[357141535,1743787839570,-374.70456929,0.00016703,2]
[357141537,1743787839581,-500.0,0.00016703,2]
[357141539,1743787839591,-500.0,0.00016703,2]
[357141541,1743787839603,-500.0,0.00016703,2]
[357141544,1743787839614,-500.0,0.00016703,2]
[357141546,1743787839625,-500.0,0.00016703,2]
[357141548,1743787839635,-500.0,0.00016703,2]
[357141550,1743787839645,-500.0,0.00016703,2]
[357141552,1743787839655,-500.0,0.00016703,2]
[357141554,1743787839666,-325.95956406,0.00016703,2]
[357141556,1743787839676,-500.0,0.00016703,2]
[357141558,1743787839687,-500.0,0.00016703,2]
[357141561,1743787839698,-500.0,0.00016703,2]
[357141563,1743787839708,-500.0,0.00016703,2]
[357141565,1743787839718,-500.0,0.00016703,2]
[357141567,1743787839730,-500.0,0.00016703,2]
[357141569,1743787839740,-500.0,0.00016703,2]
[357141571,1743787839751,-500.0,0.00016703,2]
[357141574,1743787839761,-500.0,0.00016703,2]
[357141576,1743787839772,-500.0,0.00016703,2]
[357141578,1743787839782,-500.0,0.00016703,2]
[357141580,1743787839792,-500.0,0.00016703,2]
[357141582,1743787839803,-500.0,0.00016703,2]
[357141584,1743787839814,-500.0,0.00016703,2]
[357141586,1743787839824,-500.0,0.00016703,2]
[357141589,1743787839835,-500.0,0.00016703,2]
[357141591,1743787839846,-307.99259406,0.00016703,2]
[357141593,1743787839856,-500.0,0.00016703,2]
[357141595,1743787839866,-909.42,0.00016703,2]
[357141597,1743787839876,-500.0,0.00016703,2]
[357141599,1743787839887,-500.0,0.00016703,2]
[357141601,1743787839898,-200.0,0.00016846,2]
[357141603,1743787839908,-1100.36638166,0.000169,2]
[357141605,1743787839919,-536.14,0.00016972,2]
[357141607,1743787839930,-500.0,0.00016972,2]
[357141609,1743787839941,-500.0,0.00016972,2]
[357141625,1743787840089,-500.0,0.00016972,2]
[357141627,1743787840101,-593.17,0.00016972,2]
[357141629,1743787840110,-500.0,0.00016972,2]
[357141631,1743787840120,-500.0,0.00016977,2]
[357141633,1743787840129,-500.0,0.00016977,2]
[357141635,1743787840139,-500.0,0.00016977,2]
[357141637,1743787840149,-500.0,0.00016977,2]
[357141639,1743787840158,-500.0,0.00016977,2]
[357141641,1743787840168,-500.0,0.00016977,2]
[357141643,1743787840177,-500.0,0.00016977,2]
[357141645,1743787840186,-500.0,0.00016977,2]
[357141647,1743787840195,-500.0,0.00016977,2]
[357141649,1743787840205,-500.0,0.00016977,2]
[357141651,1743787840215,-500.0,0.00016977,2]
[357141653,1743787840224,-500.0,0.00016977,2]
[357141655,1743787840233,-500.0,0.00016977,2]
[357141657,1743787840242,-500.0,0.00016977,2]
[357141659,1743787840252,-500.0,0.00016977,2]
[357141661,1743787840261,-500.0,0.00016977,2]
[357141663,1743787840270,-500.0,0.00016977,2]
[357141665,1743787840280,-500.0,0.00016977,2]
[357141667,1743787840290,-500.0,0.00016977,2]
[357141669,1743787840299,-500.0,0.00016977,2]
[357141671,1743787840308,-500.0,0.00016977,2]
[357141673,1743787840318,-500.0,0.00016977,2]
[357141675,1743787840327,-500.0,0.00016977,2]
[357141677,1743787840337,-500.0,0.00016977,2]
[357141679,1743787840347,-500.0,0.00016977,2]
[357141681,1743787840358,-500.0,0.00016977,2]
[357141683,1743787840370,-500.0,0.00016977,2]
[357141685,1743787840379,-500.0,0.00016977,2]
[357141687,1743787840390,-500.0,0.00016977,2]
[357141689,1743787840399,-500.0,0.00016977,2]
[357141691,1743787840408,-909.42,0.00016977,2]
[357141693,1743787840418,-500.0,0.00016977,2]
[357141695,1743787840427,-500.0,0.00016977,2]
[357141697,1743787840437,-1218.10943429,0.00017086,2]
[357141699,1743787840446,-500.0,0.00017171,2]
[357141701,1743787840455,-503.24039323,0.00017171,2]
[357141703,1743787840465,-500.0,0.00017171,2]
[357141705,1743787840474,-500.0,0.00017171,2]
[357141707,1743787840483,-500.0,0.00017171,2]
[357141709,1743787840492,-253.20478511,0.00017171,2]
[357141711,1743787840502,-500.0,0.00017171,2]
[357141713,1743787840511,-500.0,0.00017171,2]
[357141715,1743787840521,-500.0,0.00017171,2]
[357141717,1743787840530,-536.14,0.00017246,2]
[357141719,1743787840540,-500.0,0.00017246,2]
[357141721,1743787840549,-500.0,0.00017246,2]
[357141723,1743787840559,-500.0,0.00017246,2]
[357141725,1743787840568,-500.0,0.00017246,2]
[357141727,1743787840578,-500.0,0.00017251,2]
[357141729,1743787840586,-500.0,0.00017251,2]
[357141731,1743787840595,-500.0,0.00017251,2]
[357141733,1743787840605,-453.12491108,0.00017251,2]
[357141735,1743787840614,-500.0,0.00017251,2]
[357141737,1743787840624,-500.0,0.00017251,2]
[357141739,1743787840633,-529.85,0.00017251,2]
[357141741,1743787840643,-500.0,0.00017251,2]
[357141743,1743787840652,-500.0,0.00017251,2]
[357141745,1743787840662,-500.0,0.00017251,2]
[357141747,1743787840671,-500.0,0.00017251,2]
[357141749,1743787840680,-500.0,0.00017251,2]
[357141751,1743787840690,-500.0,0.00017251,2]
[357141753,1743787840699,-500.0,0.00017251,2]
[357141755,1743787840710,-500.0,0.00017251,2]
[357141757,1743787840719,-500.0,0.00017251,2]
[357141759,1743787840729,-500.0,0.00017251,2]
[357141761,1743787840739,-500.0,0.00017251,2]
[357141763,1743787840748,-500.0,0.00017251,2]
[357141765,1743787840758,-500.0,0.00017251,2]
[357141767,1743787840767,-500.0,0.00017251,2]
[357141769,1743787840776,-500.0,0.00017251,2]
[357141771,1743787840786,-500.0,0.00017251,2]
[357141773,1743787840795,-194.71,0.00017251,2]
[357141775,1743787840805,-500.0,0.00017251,2]
[357141777,1743787840814,-500.0,0.00017251,2]
[357141779,1743787840824,-500.0,0.00017251,2]
[357141781,1743787840834,-909.42,0.00017251,2]
[357141783,1743787840846,-493.9,0.00017251,2]
[357141785,1743787840855,-649.55,0.00017251,2]
[357141787,1743787840864,-500.0,0.00017356,2]
[357141789,1743787840874,-500.0,0.00017356,2]
[357141791,1743787840883,-160.94124664,0.00017356,2]
[357141793,1743787840892,-500.0,0.00017356,2]
[357141795,1743787840902,-185.37419647,0.00017356,2]
[357141797,1743787840911,-500.0,0.00017356,2]
[357141799,1743787840920,-500.0,0.00017356,2]
[357141801,1743787840928,-500.0,0.00017356,2]
[357141803,1743787840938,-500.0,0.00017356,2]
[357141805,1743787840947,-500.0,0.00017356,2]
[357141806,1743787840956,-500.0,0.00017356,2]
[357141808,1743787840965,-500.0,0.00017356,2]
[357141811,1743787840975,-533.95792052,0.00017435,2]
[357141812,1743787840984,-500.0,0.00017435,2]
[357141815,1743787840993,-500.0,0.00017466,2]
[357141816,1743787841003,-509.76651028,0.00017472,2]
[357141819,1743787841012,-536.14,0.0001752,2]
[357141821,1743787841021,-493.95659783,0.0001752,2]
[357141822,1743787841030,-500.0,0.0001752,2]
[357141824,1743787841039,-340.77183574,0.0001752,2]
[357141827,1743787841050,-500.0,0.0001752,2]
[357141829,1743787841059,-646.12498728,0.00017525,2]
[357141831,1743787841069,-500.0,0.00017525,2]
[357141833,1743787841080,-500.0,0.00017525,2]
[357141835,1743787841089,-500.0,0.00017525,2]
[357141836,1743787841100,-500.0,0.00017525,2]
[357141838,1743787841109,-500.0,0.00017525,2]
[357141840,1743787841119,-500.0,0.00017525,2]
[357141843,1743787841129,-500.0,0.00017525,2]
[357141844,1743787841139,-500.0,0.00017525,2]
[357141846,1743787841149,-500.0,0.00017525,2]
[357141848,1743787841158,-500.0,0.00017525,2]
[357141850,1743787841170,-500.0,0.00017525,2]
[357141853,1743787841180,-500.0,0.00017525,2]
[357141855,1743787841189,-500.0,0.00017525,2]
[357141857,1743787841198,-909.42,0.00017525,2]
[357141858,1743787841207,-500.0,0.00017615,2]
[357141860,1743787841217,-500.0,0.00017615,2]
[357141863,1743787841226,-251.98532181,0.00017615,2]
[357141865,1743787841235,-1233.84933444,0.00017632,2]
[357141867,1743787841245,-534.44279293,0.00017632,2]
[357141869,1743787841254,-500.0,0.00017632,2]
[357141871,1743787841263,-1100.36638141,0.00017693,2]
[357141873,1743787841272,-500.0,0.00017696,2]
[357141875,1743787841282,-500.0,0.00017696,2]
[357141877,1743787841291,-536.14,0.00017794,2]
[357141879,1743787841300,-500.0,0.00017794,2]
[357141881,1743787841310,-500.0,0.00017794,2]
[357141883,1743787841319,-500.0,0.00017799,2]
[357141885,1743787841329,-500.0,0.00017799,2]
[357141887,1743787841338,-500.0,0.00017799,2]
[357141889,1743787841348,-500.0,0.00017799,2]
[357141891,1743787841360,-499.95,0.00017799,2]
[357141893,1743787841369,-500.0,0.00017799,2]
[357141895,1743787841378,-500.0,0.00017799,2]
[357141897,1743787841387,-500.0,0.00017799,2]
[357141899,1743787841397,-500.0,0.00017799,2]
[357141901,1743787841406,-909.42,0.00017799,2]
[357141903,1743787841415,-289.687436,0.0001798,2]
[357141905,1743787841425,-536.14,0.00018068,2]
[357141907,1743787841436,-500.0,0.00018068,2]
[357141909,1743787841446,-500.0,0.00018068,2]
[357141911,1743787841455,-500.0,0.00018073,2]
[357141913,1743787841464,-500.0,0.00018073,2]
[357141915,1743787841473,-500.0,0.00018073,2]
[357141917,1743787841483,-500.0,0.00018073,2]
[357141919,1743787841492,-500.0,0.00018073,2]
[357141921,1743787841500,-500.0,0.00018073,2]
[357141923,1743787841510,-500.0,0.00018073,2]
[357141925,1743787841519,-644.25,0.00018073,2]
[357141927,1743787841529,-909.42,0.00018073,2]
[357141929,1743787841538,-207.4,0.00018215,2]
[357141930,1743787841547,-259.27638954,0.00018237,2]
[357141932,1743787841557,-536.14,0.00018342,2]
[357141933,1743787841567,-500.0,0.00018342,2]
[357141934,1743787841577,-500.0,0.00018342,2]
[357141935,1743787841587,-500.0,0.00018347,2]
[357141936,1743787841597,-500.0,0.00018347,2]
[357141937,1743787841607,-500.0,0.00018347,2]
[357141938,1743787841618,-500.0,0.00018347,2]
[357141939,1743787841627,-315.74,0.00018347,2]
[357141940,1743787841636,-500.0,0.00018347,2]
[357141941,1743787841646,-500.0,0.00018347,2]
[357141942,1743787841656,-909.42,0.00018347,2]
[357141944,1743787841666,-1100.36638141,0.00018486,2]
[357141946,1743787841675,-536.14,0.00018616,2]
[357141948,1743787841685,-319.46606067,0.00018616,2]
[357141950,1743787841695,-500.0,0.00018616,2]
[357141952,1743787841704,-500.0,0.00018621,2]
[357141955,1743787841714,-500.0,0.00018621,2]
[357141957,1743787841723,-500.0,0.00018621,2]
[357141959,1743787841733,-500.0,0.00018621,2]
[357141961,1743787841742,-500.0,0.00018621,2]
[357141962,1743787841752,-500.0,0.00018621,2]
[357141964,1743787841761,-909.42,0.00018621,2]
[357141967,1743787841771,-12520.15255516,0.00018623,2]
[357141968,1743787841780,-1446.85009143,0.00018843,2]
[357141970,1743787841790,-536.14,0.0001889,2]